bitfinex/quotes_SOLUSD_20250204
["timestamp","ask_amount","ask_price","bid_price","bid_amount"]
[1738680747019,13.53733853,214.42,214.36,37.81113247]
[1738680747208,93.27113247,214.47,214.4,37.81113247]
[1738680747415,55.46,214.47,214.42,37.81113247]
[1738680747712,55.46,214.47,214.44,37.81113247]
[1738680747920,97.93383247,214.47,214.4,37.81113247]
[1738680748119,13.53733853,214.46,214.38,37.81113247]
[1738680748611,0.12549,214.43,214.36,37.81113247]
[1738680748786,13.53733853,214.4,214.34,37.81113247]
[1738680748983,13.53733853,214.38,214.32,37.81113247]
[1738680749220,37.81113247,214.41,214.32,37.81113247]
[1738680749521,118.1,214.42,214.34,37.81113247]
[1738680749817,0.50196,214.38,214.32,37.81113247]
[1738680750017,118.1,214.42,214.36,37.81113247]
[1738680750018,122.7639,214.42,214.36,37.81113247]
[1738680750219,55.46,214.47,214.4,37.81113247]
[1738680750418,0.063,214.52,214.46,37.81113247]
[1738680750616,0.063,214.52,214.5,37.81113247]
[1738680751022,13.66282853,214.51,214.44,37.81113247]
[1738680751204,0.25098,214.43,214.33,37.81113247]
[1738680751400,0.12549,214.39,214.33,37.81113247]
[1738680751608,0.12549,214.36,214.29,37.81113247]
[1738680751797,0.12549,214.36,214.24,4.6674]
[1738680751798,37.81113247,214.38,214.31,37.81113247]
[1738680751994,37.81113247,214.38,214.24,4.6674]
[1738680751995,13.53733853,214.36,214.29,37.81113247]
[1738680752222,0.37647,214.35,214.29,37.81113247]
[1738680752425,13.53733853,214.29,214.22,37.81113247]
[1738680753023,37.81113247,214.36,214.28,37.81113247]
[1738680753389,37.81113247,214.29,214.2,37.81113247]
[1738680753589,37.81113247,214.33,214.24,37.81113247]
[1738680753790,4.6648,214.37,214.3,37.81113247]
[1738680754089,0.12549,214.35,214.3,37.81113247]
[1738680754293,0.12549,214.35,214.22,0.69984942]
[1738680754294,0.12549,214.36,214.28,37.81113247]
[1738680754595,37.81113247,214.35,214.28,37.81113247]
[1738680754802,0.12549,214.33,214.28,37.81113247]
[1738680754999,4.6641,214.4,214.32,37.81113247]
[1738680755204,37.81113247,214.43,214.28,37.81113247]
[1738680755205,4.663,214.45,214.37,37.81113247]
[1738680755504,42.47413247,214.45,214.37,37.81113247]
[1738680755821,4.663,214.45,214.39,37.81113247]
[1738680756129,13.66282853,214.42,214.35,37.81113247]
[1738680756432,13.66282853,214.42,214.28,38.81113247]
[1738680756433,0.12549,214.42,214.39,37.81113247]
[1738680756603,4.6633,214.44,214.39,37.81113247]
[1738680756809,4.78849,214.46,214.39,37.81113247]
[1738680757022,13.53733853,214.45,214.39,37.81113247]
[1738680757411,0.12549,214.43,214.37,37.81113247]
[1738680757750,37.93662247,214.43,214.35,37.81113247]
[1738680758043,4.78939,214.41,214.35,37.81113247]
[1738680758339,37.81113247,214.47,214.39,37.81113247]
[1738680758706,13.91380853,214.46,214.39,37.81113247]
[1738680759234,13.66282853,214.46,214.39,37.81113247]
[1738680759561,0.12549,214.43,214.39,37.81113247]
[1738680759745,0.12549,214.43,214.39,35.05213247]
[1738680759931,0.12549,214.43,214.37,37.81113247]
[1738680760715,0.12549,214.41,214.35,37.81113247]
[1738680761235,0.12549,214.37,214.31,37.81113247]
[1738680761539,0.12549,214.35,214.31,37.81113247]
[1738680761740,37.81113247,214.39,214.31,37.81113247]
[1738680761910,4.6636,214.43,214.35,37.81113247]
[1738680762111,13.91380853,214.4,214.31,37.81113247]
[1738680762336,0.12549,214.37,214.29,37.84113247]
[1738680762519,0.12549,214.35,214.29,0.03]
[1738680762912,37.81113247,214.32,214.29,0.03]
[1738680763331,5.14,214.35,214.31,37.81113247]
[1738680763713,13.66282853,214.34,214.29,37.84113247]
[1738680763911,0.12549,214.32,214.29,0.03]
[1738680764333,4.6658,214.33,214.27,37.81113247]
[1738680764544,37.81113247,214.42,214.31,37.81113247]
[1738680764847,118.1,214.44,214.28,37.81113247]
[1738680764848,4.6629,214.46,214.4,37.81113247]
[1738680765218,37.81113247,214.5,214.42,37.81113247]
[1738680765418,4.6619,214.51,214.44,37.81113247]
[1738680765624,37.81113247,214.54,214.44,37.81113247]
[1738680765832,4.6614,214.53,214.44,37.81113247]
[1738680766160,0.12549,214.51,214.44,37.81113247]
[1738680766469,0.063,214.52,214.44,37.81113247]
[1738680766833,4.6618,214.51,214.44,37.81113247]
[1738680767033,4.7246,214.52,214.44,37.81113247]
[1738680767332,0.063,214.52,214.44,37.81113247]
[1738680767741,0.12549,214.51,214.44,37.81113247]
[1738680768333,18.19913853,214.51,214.44,37.81113247]
[1738680768631,0.12549,214.47,214.42,37.81113247]
[1738680769161,0.25098,214.48,214.42,37.81113247]
[1738680769370,0.25098,214.44,214.4,37.81113247]
[1738680769659,13.41184853,214.47,214.4,37.81113247]
[1738680769868,0.50196,214.46,214.4,37.81113247]
[1738680770056,13.41184853,214.43,214.36,37.81113247]
[1738680770356,0.063,214.45,214.38,37.81113247]
[1738680770673,0.063,214.45,214.44,37.81113247]
[1738680771042,13.66282853,214.44,214.4,37.81113247]
[1738680771260,0.12549,214.39,214.32,37.81113247]
[1738680772142,20.25098,214.39,214.34,37.81113247]
[1738680772457,13.66282853,214.39,214.34,37.81113247]
[1738680772965,0.12549,214.38,214.34,37.81113247]
[1738680773335,0.12549,214.38,214.3,37.81113247]
[1738680773336,0.12549,214.37,214.3,37.81113247]
[1738680773533,0.12549,214.36,214.32,37.81113247]
[1738680773738,54.13643247,214.39,214.3,37.81113247]
[1738680773951,16.3253,214.39,214.3,37.81113247]
[1738680774352,9.7839,214.42,214.36,37.81113247]
[1738680774642,9.7839,214.42,214.38,37.81113247]
[1738680774969,13.66282853,214.41,214.36,37.81113247]
[1738680775639,0.063,214.45,214.4,37.81113247]
[1738680775843,0.063,214.45,214.42,37.81113247]
[1738680776240,0.063,214.45,214.44,37.81113247]
[1738680776646,0.063,214.52,214.47,20.0]
[1738680776943,0.063,214.52,214.51,37.81113247]
[1738680777449,0.063,214.52,214.51,42.47283247]
[1738680777854,0.063,214.52,214.51,43.17182353]
[1738680778047,0.063,214.52,214.51,42.47283247]
[1738680778255,0.063,214.52,214.51,43.17184514]
[1738680778460,0.063,214.64,214.54,20.25098]
[1738680778662,0.063,214.64,214.63,37.81113247]
[1738680780282,0.063,214.64,214.61,37.81113247]
[1738680780470,0.18849,214.64,214.59,37.81113247]
[1738680780680,0.12549,214.62,214.48,0.69899535]
[1738680780854,0.12549,214.58,214.52,37.81113247]
[1738680781048,37.93662247,214.58,214.5,37.81113247]
[1738680781253,5.1,214.62,214.56,37.81113247]
[1738680781475,5.1,214.62,214.58,37.81113247]
[1738680781982,5.1,214.62,214.5,38.51007701]
[1738680781983,9.7595,214.62,214.56,37.81113247]
[1738680782167,5.1,214.62,214.58,37.81113247]
[1738680782363,5.1,214.62,214.6,37.81113247]
[1738680782776,0.063,214.64,214.6,37.81113247]
[1738680783085,0.063,214.64,214.63,38.06211247]
[1738680783253,0.063,214.64,214.63,52.29801525]
[1738680783459,0.063,214.67,214.66,38.44681853]
[1738680783655,0.063,214.81,214.74,20.0]
[1738680783867,0.063,214.81,214.8,37.81113247]
[1738680784680,0.03,214.84,214.83,20.0]
[1738680784862,0.03,214.84,214.83,97.57129368]
[1738680785053,0.03,214.85,214.84,13.78831853]
[1738680785252,0.03,214.87,214.86,0.25098]
[1738680785502,0.03,214.96,214.88,25.6537]
[1738680785795,0.03,214.96,214.88,78.07637177]
[1738680785992,0.03,214.96,214.9,1.0]
[1738680786162,0.03,214.96,214.94,37.81113247]
[1738680787979,0.03,214.96,214.95,0.82308651]
[1738680788180,0.03,214.96,214.94,75.62226494]
[1738680788988,0.03,214.96,214.94,37.81113247]
[1738680789292,0.03,214.96,214.95,0.82315212]
[1738680789474,0.03,214.96,214.94,80.9721249]
[1738680789785,0.03,214.96,214.94,37.81113247]
[1738680789983,0.25098,215.02,214.94,37.81113247]
[1738680790202,118.47647,215.02,214.94,37.81113247]
[1738680790356,37.93662247,215.02,214.94,37.81113247]
[1738680790561,0.063,215.03,214.96,37.81113247]
[1738680790777,0.063,215.03,214.98,37.81113247]
[1738680790984,0.063,215.03,215.02,37.81113247]
[1738680791888,0.063,215.03,215.0,37.81113247]
[1738680792190,0.063,215.03,214.99,37.81113247]
[1738680792364,0.063,215.03,215.01,37.81113247]
[1738680792958,0.063,215.03,214.98,37.81113247]
[1738680793180,118.41398,215.03,214.96,37.81113247]
[1738680793380,0.25098,215.02,214.96,37.81113247]
[1738680793666,4.6509,215.01,214.98,37.81113247]
[1738680793865,0.063,215.03,215.0,0.12549]
[1738680794094,0.063,215.03,214.97,14.41184853]
[1738680794095,0.063,215.03,215.02,37.81113247]
[1738680794561,0.063,215.03,215.0,37.81113247]
[1738680794765,0.063,215.03,214.94,39.50866321]
[1738680794766,0.063,215.03,215.02,37.81113247]
[1738680795571,0.063,215.03,215.02,90.28509347]
[1738680795771,0.063,215.03,215.02,95.63307687]
[1738680795976,0.063,215.03,215.02,38.50841587]
[1738680796299,0.063,215.03,215.02,76.3196604]
[1738680796467,0.063,215.03,215.02,89.98248893]
[1738680796667,0.063,215.03,215.02,37.81113247]
[1738680799696,0.12549,215.02,214.98,37.81113247]
[1738680800390,0.12549,215.02,214.96,37.81113247]
[1738680800391,0.25098,215.02,214.96,37.81113247]
[1738680800600,0.12549,215.01,214.94,37.81113247]
[1738680800767,172.25083247,215.03,214.96,37.81113247]
[1738680800768,4.7135,215.03,214.96,37.81113247]
[1738680800987,0.063,215.03,215.02,37.81113247]
[1738680802115,0.063,215.03,215.02,38.63397723]
[1738680802421,4.6468,215.21,215.06,20.0]
[1738680802591,4.647,215.2,215.1,37.81113247]
[1738680802787,0.12549,215.17,215.1,37.81113247]
[1738680803018,4.77339,215.15,215.1,37.81113247]
[1738680803398,4.77339,215.15,215.08,37.81113247]
[1738680803600,0.12549,215.1,215.06,37.81113247]
[1738680803928,4.6492,215.09,215.04,37.81113247]
[1738680804130,0.03,215.11,215.08,37.81113247]
[1738680804930,4.6788,215.11,215.06,37.81113247]
[1738680805224,13.53733853,215.09,215.0,37.81113247]
[1738680805428,13.53733853,215.09,214.96,4.6518]
[1738680805429,0.03,215.11,215.1,20.0]
[1738680805721,0.03,215.11,215.1,62.46013247]
[1738680806239,0.03,215.11,215.1,57.81113247]
[1738680806599,0.03,215.11,215.1,37.81113247]
[1738680807196,0.03,215.11,215.1,38.50834587]
[1738680807498,0.03,215.11,215.1,37.81113247]
[1738680810245,0.15549,215.11,215.08,37.81113247]
[1738680810538,0.03,215.11,215.1,37.81113247]
[1738680811322,0.03,215.11,215.1,37.93662247]
[1738680811932,0.03,215.11,215.1,42.46013247]
[1738680812135,0.03,215.11,215.1,37.81113247]
[1738680813148,0.03,215.11,215.06,37.81113247]
[1738680813441,156.03662247,215.15,215.08,37.81113247]
[1738680813647,0.25098,215.1,215.06,37.81113247]
[1738680813846,0.12549,215.05,214.99,37.81113247]
[1738680814051,0.12549,215.05,214.97,37.81113247]
[1738680814052,169.448471,215.05,214.97,37.81113247]
[1738680814220,156.03662247,215.05,214.97,37.81113247]
[1738680814546,0.12549,215.04,214.97,37.81113247]
[1738680814718,0.12549,215.02,214.97,37.81113247]
[1738680814918,0.12549,215.02,214.96,0.063]
[1738680815128,155.91113247,215.01,214.96,0.063]
[1738680815347,0.25098,214.98,214.96,0.063]
[1738680815640,37.81113247,214.99,214.96,0.063]
[1738680815641,131.76282853,214.97,214.96,0.063]
[1738680815843,174.225761,214.97,214.96,0.063]
[1738680816070,175.351251,214.97,214.96,0.0001]
[1738680816242,56.251251,214.97,214.96,0.0001]
[1738680816440,0.25098,214.92,214.84,37.81113247]
[1738680816653,0.25098,214.92,214.88,37.81113247]
[1738680816860,0.12549,214.92,214.9,37.81113247]
[1738680817065,4.6518,214.97,214.9,37.81113247]
[1738680817366,5.2,215.0,214.92,37.81113247]
[1738680817572,37.81113247,215.07,214.98,37.81113247]
[1738680817866,4.6498,215.06,215.02,37.81113247]
[1738680818044,54.08333247,215.09,215.0,37.81113247]
[1738680818239,13.66282853,215.06,214.98,37.81113247]
[1738680818765,0.12549,215.06,215.0,37.81113247]
[1738680818968,4.6484,215.13,215.04,37.81113247]
[1738680819141,4.6484,215.13,214.99,0.12549]
[1738680819142,37.81113247,215.12,215.05,37.81113247]
[1738680819347,0.25098,215.1,215.05,37.81113247]
[1738680819754,0.12549,215.1,215.05,37.81113247]
[1738680819956,0.12549,215.1,215.07,37.81113247]
[1738680820143,5.2,215.15,215.07,37.81113247]
[1738680820338,9.8479,215.15,215.07,21.66861592]
[1738680820543,4.77379,215.13,215.07,21.66861592]
[1738680820967,0.12549,215.13,215.07,21.66861592]
[1738680821172,5.2,215.15,215.09,37.81113247]
[1738680821353,4.647,215.19,215.09,37.81113247]
[1738680821666,118.1,215.24,215.17,37.81113247]
[1738680821874,0.03,215.25,215.19,37.81113247]
[1738680822064,0.03,215.25,215.21,37.81113247]
[1738680822371,0.03,215.25,215.23,37.81113247]
[1738680823272,0.03,215.25,215.24,0.12549]
[1738680823852,0.03,215.25,215.24,4.89688]
[1738680824065,0.03,215.25,215.24,4.77139]
[1738680824369,0.03,215.25,215.24,4.6459]
[1738680824572,0.03,215.25,215.23,42.45723247]
[1738680824955,0.03,215.25,215.23,37.81113247]
[1738680825161,0.03,215.25,215.24,0.82218547]
[1738680825346,0.03,215.25,215.24,0.94767547]
[1738680825546,0.03,215.25,215.24,52.17065647]
[1738680825748,0.03,215.33,215.28,13.66282853]
[1738680826052,12.2006,215.45,215.32,37.93662247]
[1738680826365,12.2006,215.45,215.38,37.81113247]
[1738680826766,0.12549,215.4,215.33,37.81113247]
[1738680827372,0.12549,215.38,215.31,37.81113247]
[1738680827757,0.12549,215.36,215.29,37.81113247]
[1738680828064,0.12549,215.32,215.25,37.81113247]
[1738680828248,37.81113247,215.29,215.21,37.81113247]
[1738680828673,37.81113247,215.28,215.2,37.81113247]
[1738680828879,0.12549,215.27,215.2,37.81113247]
[1738680829079,155.91113247,215.32,215.24,37.81113247]
[1738680829282,155.91113247,215.32,215.28,37.81113247]
[1738680829283,118.1,215.32,215.28,37.81113247]
[1738680829451,0.12549,215.34,215.28,37.81113247]
[1738680829964,37.81113247,215.43,215.32,37.81113247]
[1738680830351,4.6416,215.44,215.37,37.81113247]
[1738680830555,0.25098,215.42,215.35,37.81113247]
[1738680831274,0.12549,215.4,215.33,37.81113247]
[1738680831455,0.25098,215.4,215.33,37.81113247]
[1738680831877,0.25098,215.4,215.31,37.81113247]
[1738680832059,4.6427,215.39,215.31,37.81113247]
[1738680832646,37.81113247,215.37,215.29,37.81113247]
[1738680832851,0.12549,215.36,215.29,37.81113247]
[1738680833252,0.25098,215.36,215.29,37.81113247]
[1738680833553,1.25098,215.34,215.25,37.81113247]
[1738680833753,1.25098,215.34,215.12,1.0]
[1738680833754,0.25098,215.27,215.19,37.81113247]
[1738680833961,0.25098,215.27,215.07,18.592714]
[1738680833962,4.6464,215.22,215.15,37.81113247]
[1738680834153,42.45753247,215.22,215.15,37.81113247]
[1738680834381,4.6464,215.22,215.19,37.81113247]
[1738680834698,0.12549,215.21,215.13,37.81113247]
[1738680834887,0.12549,215.19,215.11,37.81113247]
[1738680835181,0.25098,215.19,215.11,37.81113247]
[1738680835373,118.1,215.21,215.13,37.81113247]
[1738680835874,38.06211247,215.2,215.11,37.81113247]
[1738680836055,4.647,215.19,215.15,37.81113247]
[1738680836255,118.1,215.25,215.17,37.81113247]
[1738680836477,4.6463,215.23,215.17,37.81113247]
[1738680836779,4.6463,215.23,215.19,37.81113247]
[1738680836962,9.7054,215.27,215.21,37.81113247]
[1738680837164,4.6446,215.31,215.25,37.81113247]
[1738680837465,0.12549,215.32,215.28,37.81113247]
[1738680837680,4.6442,215.33,215.28,37.81113247]
[1738680838172,0.12549,215.32,215.26,37.81113247]
[1738680838369,0.25098,215.32,215.26,37.81113247]
[1738680838570,0.25098,215.32,215.24,37.81113247]
[1738680839153,0.25098,215.28,215.2,37.81113247]
[1738680839478,37.81113247,215.27,215.18,37.81113247]
[1738680839682,155.91113247,215.27,215.18,37.81113247]
[1738680840181,4.77139,215.24,215.18,37.81113247]
[1738680840383,7.11523157,215.25,215.23,37.81113247]
[1738680840770,0.12549,215.24,215.17,37.81113247]
[1738680840992,42.45693247,215.25,215.14,0.69705293]
[1738680840993,4.6458,215.25,215.14,0.69705293]
[1738680841290,4.6458,215.25,215.13,4.83679]
[1738680841478,4.6458,215.25,215.2,37.81113247]
[1738680841682,4.6458,215.25,215.18,37.81113247]
[1738680842176,0.12549,215.24,215.18,37.81113247]
[1738680842495,4.6458,215.25,215.2,37.81113247]
[1738680842994,4.6458,215.25,215.22,37.81113247]
[1738680843187,28.35058894,215.29,215.24,37.81113247]
[1738680843495,28.35058894,215.29,215.26,37.81113247]
[1738680843496,32.99548894,215.29,215.26,37.81113247]
[1738680843691,28.35058894,215.29,215.26,37.81113247]
[1738680843894,32.99548894,215.29,215.26,37.81113247]
[1738680844077,28.35058894,215.29,215.26,37.81113247]
[1738680844284,0.12549,215.28,215.22,37.81113247]
[1738680844494,37.93662247,215.28,215.2,37.81113247]
[1738680844879,0.12549,215.28,215.22,37.81113247]
[1738680845081,0.12549,215.28,215.2,37.81113247]
[1738680845269,0.25098,215.25,215.16,37.81113247]
[1738680845476,0.25098,215.21,215.14,37.81113247]
[1738680845697,0.12549,215.21,215.14,37.81113247]
[1738680846003,37.81113247,215.18,215.13,0.063]
[1738680846171,4.6477,215.16,215.13,0.063]
[1738680847102,38.06211247,215.14,215.13,0.063]
[1738680847285,38.06211247,215.14,215.05,0.063]
[1738680847286,0.12549,215.13,215.05,0.063]
[1738680847489,0.12549,215.1,215.05,0.063]
[1738680847787,0.12549,215.08,215.05,0.063]
[1738680847972,0.12549,215.06,215.05,0.063]
[1738680848376,4.77529,215.06,215.05,0.063]
[1738680848599,118.1,215.07,215.05,0.063]
[1738680849786,122.7497,215.07,215.05,0.063]
[1738680849991,118.1,215.07,215.05,0.063]
[1738680850180,0.12549,215.06,215.05,0.063]
[1738680850588,118.1,215.07,215.05,0.063]
[1738680850809,122.7497,215.07,214.98,4.6514]
[1738680850979,122.7497,215.07,214.91,0.063]
[1738680850980,118.22549,215.06,214.99,37.81113247]
[1738680851504,118.22549,215.05,214.99,37.81113247]
[1738680851703,0.25098,215.02,214.95,37.81113247]
[1738680851903,118.1,215.01,214.93,37.81113247]
[1738680852105,9.6497,215.07,214.99,37.81113247]
[1738680852308,118.1,215.1,215.05,37.81113247]
[1738680852497,0.12549,215.12,215.08,37.81113247]
[1738680852997,0.12549,215.12,215.06,37.81113247]
[1738680853176,0.12549,215.09,215.02,37.81113247]
[1738680853380,0.12549,215.06,215.0,37.81113247]
[1738680853601,37.81113247,215.07,214.89,12.6338]
[1738680853602,0.12549,215.04,214.98,37.81113247]
[1738680853795,118.1,215.05,215.02,37.81113247]
[1738680854203,118.1,215.05,215.0,37.81113247]
[1738680854394,4.77569,215.04,215.0,37.81113247]
[1738680854596,122.87569,215.04,214.98,37.81113247]
[1738680854903,122.87569,215.04,214.96,37.81113247]
[1738680854904,0.12549,215.03,214.96,37.81113247]
[1738680855082,0.12549,215.02,214.96,37.81113247]
[1738680855602,0.25098,215.02,214.96,37.81113247]
[1738680855811,0.12549,215.02,214.96,37.81113247]
[1738680856115,0.25098,215.0,214.92,37.81113247]
[1738680856314,0.12549,214.93,214.91,0.063]
[1738680856486,0.12549,214.92,214.91,0.063]
[1738680857109,37.81113247,214.95,214.91,0.063]
[1738680857317,4.98,214.96,214.92,37.81113247]
[1738680857686,38.06211247,214.95,214.91,0.063]
[1738680857890,0.12549,214.92,214.91,0.063]
[1738680858091,37.93662247,214.93,214.91,0.063]
[1738680858318,4.6528,214.92,214.91,0.063]
[1738680858517,4.6525,214.94,214.91,0.063]
[1738680859022,0.25098,214.93,214.91,0.063]
[1738680859328,4.98,214.96,214.91,0.063]
[1738680859606,4.98,214.96,214.92,37.81113247]
[1738680859918,4.98,214.96,214.91,0.063]
[1738680859919,38.06211247,214.95,214.91,0.063]
[1738680860408,42.71451247,214.95,214.91,0.063]
[1738680860929,0.12549,214.93,214.91,0.063]
[1738680861090,118.35098,214.92,214.91,0.063]
[1738680861292,118.22549,214.92,214.91,0.063]
[1738680862230,118.1,214.92,214.91,0.063]
[1738680862922,118.22549,214.96,214.91,0.063]
[1738680863123,4.98,214.98,214.92,37.81113247]
[1738680863292,122.7506,215.03,214.96,37.81113247]
[1738680863506,118.1,215.02,214.95,37.81113247]
[1738680863699,0.03,215.04,215.01,37.81113247]
[1738680864712,0.03,215.04,214.99,37.81113247]
[1738680864906,0.03,215.04,214.91,11.6956]
[1738680864907,0.12549,215.01,214.91,0.063]
[1738680865227,0.12549,214.99,214.93,37.81113247]
[1738680865430,118.1,214.98,214.93,37.81113247]
[1738680865620,0.12549,214.97,214.91,37.87413247]
[1738680866014,0.25098,214.97,214.91,37.87413247]
[1738680866333,155.91113247,214.98,214.91,37.87413247]
[1738680866334,0.12549,214.95,214.91,37.87413247]
[1738680866538,4.6524,214.94,214.91,37.87413247]
[1738680866832,118.1,214.97,214.93,37.81113247]
[1738680867014,4.6508,215.02,214.96,37.81113247]
[1738680867215,122.7505,215.03,214.98,37.81113247]
[1738680867409,38.06211247,215.02,214.94,37.81113247]
[1738680867805,0.25098,214.99,214.92,37.81113247]
[1738680868006,0.25098,214.95,214.91,0.063]
[1738680868211,0.25098,214.93,214.91,0.063]
[1738680868407,156.03662247,214.92,214.91,0.063]
[1738680868629,160.81491247,214.92,214.91,0.0001]
[1738680868831,62.377741,214.92,214.91,0.0001]
[1738680869408,62.252251,214.92,214.91,0.0001]
[1738680869836,62.377741,214.92,214.91,0.0001]
[1738680870539,62.252251,214.92,214.91,0.0001]
[1738680870730,61.126761,214.92,214.91,0.0001]
[1738680871040,47.71491247,214.92,214.91,0.0001]
[1738680871223,48.71491247,214.92,214.91,0.0001]
[1738680871419,62.377741,214.92,214.91,0.0001]
[1738680871627,62.377741,214.92,214.74,0.063]
[1738680871628,0.12549,214.8,214.74,0.063]
[1738680871924,0.12549,214.8,214.74,37.87413247]
[1738680872273,20.0,214.83,214.76,37.81113247]
[1738680872428,37.81113247,214.89,214.8,37.81113247]
[1738680872624,37.81113247,214.89,214.82,37.81113247]
[1738680872824,20.0,214.86,214.8,37.81113247]
[1738680873025,0.25098,214.85,214.8,37.81113247]
[1738680873234,0.25098,214.81,214.74,37.87413247]
[1738680873442,0.12549,214.8,214.74,37.87413247]
[1738680873643,0.12549,214.8,214.76,0.063]
[1738680873941,118.22549,214.8,214.76,0.063]
[1738680874519,118.1,214.79,214.76,0.063]
[1738680875331,4.6551,214.82,214.76,0.063]
[1738680875628,0.25098,214.81,214.76,0.063]
[1738680875830,0.12549,214.81,214.76,0.063]
[1738680876042,118.1,214.85,214.78,37.81113247]
[1738680876240,118.1,214.9,214.84,37.81113247]
[1738680876448,160.56453247,214.9,214.82,37.81113247]
[1738680876836,0.12549,214.85,214.78,37.81113247]
[1738680877031,118.22549,214.85,214.8,37.81113247]
[1738680877228,118.1,214.85,214.82,37.81113247]
[1738680877457,118.1,214.85,214.84,37.81113247]
[1738680877645,0.12549,214.88,214.84,37.81113247]
[1738680877845,0.12549,214.88,214.8,37.81113247]
[1738680877846,38.06211247,214.88,214.8,37.81113247]
[1738680878174,37.93662247,214.88,214.8,37.81113247]
[1738680878538,0.12549,214.85,214.78,37.81113247]
[1738680878841,118.22549,214.85,214.76,37.87413247]
[1738680879035,156.03662247,214.84,214.76,37.87413247]
[1738680879555,155.91113247,214.84,214.76,37.87413247]
[1738680879738,118.1,214.84,214.78,37.81113247]
[1738680879938,0.12549,214.83,214.76,37.87413247]
[1738680880259,118.35098,214.83,214.76,37.87413247]
[1738680880433,0.12549,214.81,214.76,37.87413247]
[1738680880632,0.25098,214.77,214.76,0.063]
[1738680881061,0.12549,214.76,214.74,0.063]
[1738680881363,37.81113247,214.78,214.74,0.063]
[1738680881658,4.6552,214.81,214.74,37.87413247]
[1738680881872,4.655,214.83,214.78,37.81113247]
[1738680882365,4.655,214.83,214.78,21.64789728]
[1738680882569,118.1,214.84,214.74,0.063]
[1738680882570,0.12549,214.79,214.74,0.063]
[1738680883635,0.25098,214.77,214.74,0.063]
[1738680883834,118.1,214.76,214.74,0.063]
[1738680884656,0.12549,214.75,214.74,0.063]
[1738680884844,0.25098,214.75,214.74,0.063]
[1738680885050,118.1,214.76,214.74,0.063]
[1738680885265,122.7563,214.76,214.74,0.063]
[1738680885468,0.25098,214.75,214.74,0.063]
[1738680885764,0.25098,214.71,214.62,37.81113247]
[1738680886071,156.16211247,214.71,214.62,37.81113247]
[1738680886264,118.22549,214.71,214.64,37.81113247]
[1738680886465,118.22549,214.71,214.66,37.81113247]
[1738680886844,122.88299,214.71,214.66,37.81113247]
[1738680887272,118.22549,214.71,214.66,37.81113247]
[1738680887769,118.1,214.7,214.64,37.81113247]
[1738680887939,155.91113247,214.8,214.69,0.25098]
[1738680888146,4.655,214.82,214.77,37.81113247]
[1738680888355,0.25098,214.81,214.77,37.81113247]
[1738680888663,0.25098,214.81,214.61,39.00257655]
[1738680888664,0.25098,214.79,214.75,37.81113247]
[1738680888839,38.06211247,214.76,214.67,37.81113247]
[1738680889039,13.41184853,214.77,214.57,1.0]
[1738680889040,38.06211247,214.74,214.65,37.81113247]
[1738680889235,0.12549,214.71,214.65,37.81113247]
[1738680889463,0.25098,214.71,214.65,37.81113247]
[1738680889667,0.25098,214.71,214.63,37.81113247]
[1738680889972,0.25098,214.69,214.63,37.81113247]
[1738680890268,0.12549,214.67,214.63,37.81113247]
[1738680890951,4.658,214.68,214.61,37.81113247]
[1738680891157,0.12549,214.67,214.61,37.81113247]
[1738680891667,0.12549,214.65,214.57,37.81113247]
[1738680891877,118.1,214.66,214.61,37.81113247]
[1738680892045,118.1,214.66,214.63,37.81113247]
[1738680892247,54.45433247,214.72,214.61,37.81113247]
[1738680892248,42.46893247,214.7,214.61,37.81113247]
[1738680892545,0.25098,214.67,214.59,37.81113247]
[1738680893244,16.3019,214.7,214.54,0.063]
[1738680893245,0.25098,214.65,214.57,37.81113247]
[1738680893462,0.25098,214.65,214.54,0.063]
[1738680893463,0.12549,214.57,214.54,0.063]
[1738680893646,0.12549,214.55,214.54,0.063]
[1738680893970,118.1,214.56,214.54,0.063]